bitfinex-derivatives/quotes_BTCF0:USTF0_20250710
["timestamp","ask_amount","ask_price","bid_price","bid_amount"]
[1752189577310,0.82415788,116070.0,116060.0,0.02252]
[1752189577516,0.99642658,116070.0,116060.0,0.02252]
[1752189577811,0.99642658,116070.0,116040.0,0.38074346]
[1752189578019,1.33274,116060.0,116050.0,0.02252]
[1752189578203,1.33322001,116060.0,116050.0,0.02252]
[1752189578910,1.33322001,116060.0,116050.0,0.05642]
[1752189579210,1.67807789,116060.0,116050.0,0.05642]
[1752189579608,1.67807789,116060.0,116050.0,0.05842]
[1752189581719,1.85036149,116060.0,116050.0,0.002]
[1752189581919,2.55601937,116060.0,116050.0,0.002]
[1752189582720,0.2286984,116050.0,116040.0,0.00172347]
[1752189583016,1.34111416,116050.0,116040.0,0.00172347]
[1752189583215,1.51389816,116050.0,116040.0,0.00172347]
[1752189584920,1.51389816,116050.0,116040.0,0.00572347]
[1752189585418,1.51389816,116050.0,116040.0,0.00872347]
[1752189585626,1.34155416,116050.0,116040.0,0.00872347]
[1752189585816,1.51389816,116050.0,116040.0,0.00872347]
[1752189586714,1.34155416,116050.0,116040.0,0.00872347]
[1752189587019,1.34455416,116050.0,116040.0,0.00572347]
[1752189587416,0.2154032,116040.0,116020.0,0.05167767]
[1752189587617,1.67545788,116030.0,116020.0,0.07419767]
[1752189587813,1.67589788,116030.0,116020.0,0.07419767]
[1752189588522,1.67589788,116030.0,116020.0,0.05642]
[1752189589122,1.67589788,116030.0,116020.0,0.05842]
[1752189589324,1.7443977,116030.0,116020.0,0.05942]
[1752189590325,1.7530205,116030.0,116020.0,0.05842]
[1752189591627,1.7530205,116030.0,116020.0,0.05642]
[1752189591830,1.7530205,116030.0,116020.0,0.06989588]
[1752189593529,1.7530205,116030.0,116020.0,0.01347588]
[1752189593729,1.7530205,116030.0,116020.0,0.0235828]
[1752189593933,1.7530205,116030.0,116020.0,0.0564428]
[1752189596726,1.7530205,116030.0,116020.0,0.03286]
[1752189597630,1.7530205,116030.0,116020.0,0.05553]
[1752189598832,1.62898488,116030.0,116020.0,0.05553]
[1752189599935,1.76771308,116030.0,116010.0,0.45746]
[1752189600232,0.27955226,116020.0,116010.0,0.48057]
[1752189603938,0.27955226,116020.0,116010.0,0.50375839]
[1752189604127,0.27955226,116020.0,116010.0,0.50375785]
[1752189604331,0.27955226,116020.0,116010.0,0.50375837]
[1752189604527,0.27955226,116020.0,116010.0,0.48057]
[1752189606429,0.05873,116020.0,116010.0,0.48057]
[1752189606625,0.27955226,116020.0,116010.0,0.48057]
[1752189610137,0.50037452,116020.0,116010.0,0.48057]
[1752189610333,0.28003227,116020.0,116010.0,0.48057]
[1752189610631,0.50037452,116020.0,116010.0,0.11977]
[1752189610839,0.28003227,116020.0,116010.0,0.11933]
[1752189611039,0.27955226,116020.0,116010.0,0.11933]
[1752189612136,0.86117452,116020.0,116010.0,0.11933]
[1752189612341,1.06595752,116020.0,116010.0,0.0329]
[1752189612634,0.2310878,116010.0,116000.0,0.01949961]
[1752189612835,2.30249232,116010.0,116000.0,0.01949961]
[1752189613039,2.30293232,116010.0,116000.0,0.00172406]
[1752189613240,0.05873,116000.0,115990.0,0.08563]
[1752189613434,0.64035226,116000.0,115990.0,0.11623]
[1752189613741,0.64079226,116000.0,115990.0,0.11623]
[1752189614040,0.27999226,116000.0,115990.0,0.11623]
[1752189614341,0.27955226,116000.0,115990.0,0.11623]
[1752189616032,0.27955226,116000.0,115990.0,0.11823]
[1752189616235,0.27955226,116000.0,115990.0,0.47903]
[1752189616435,0.27955226,116000.0,115990.0,0.47947]
[1752189620245,0.27955226,116000.0,115990.0,0.48247]
[1752189624839,0.27955226,116000.0,115990.0,0.42251]
[1752189625045,0.56237452,116000.0,115990.0,0.06171]
[1752189625249,0.34203227,116000.0,115990.0,0.06127]
[1752189625450,0.34155226,116000.0,115990.0,0.06127]
[1752189627349,0.34155226,116000.0,115990.0,0.12457]
[1752189632153,0.31085226,116000.0,115990.0,0.12457]
[1752189633147,0.31085226,116000.0,115990.0,0.48537]
[1752189633351,0.27955226,116000.0,115990.0,0.48581]
[1752189635561,0.34225226,116000.0,115990.0,0.00544]
[1752189635755,0.34225226,116000.0,115990.0,0.005]
[1752189637360,0.73544732,116000.0,115990.0,0.005]
[1752189637669,0.87586506,116000.0,115990.0,0.005]
[1752189639169,0.70349226,116000.0,115990.0,0.005]
[1752189639867,0.87586496,116000.0,115990.0,0.005]
[1752189640167,0.70349226,116000.0,115990.0,0.005]
[1752189640866,0.87586496,116000.0,115990.0,0.005]
[1752189641767,0.70349226,116000.0,115990.0,0.005]
[1752189642770,0.70349226,116000.0,115990.0,0.0386]
[1752189642973,0.09087,116000.0,115990.0,0.06253]
[1752189643169,0.27955226,116000.0,115990.0,0.12673]
[1752189649172,0.88127226,116000.0,115990.0,0.12673]
[1752189649375,0.00044,116000.0,115990.0,0.72668743]
[1752189649575,0.25658226,116010.0,115990.0,0.86591503]
[1752189649775,0.24583226,116010.0,116000.0,0.41833]
[1752189649966,0.24583226,116010.0,116000.0,0.48197]
[1752189650877,0.22282226,116010.0,116000.0,0.48397]
[1752189651578,0.24583226,116010.0,116000.0,0.48397]
[1752189652079,0.24583226,116010.0,116000.0,0.48497]
[1752189653874,0.28051226,116010.0,116000.0,0.48497]
[1752189660383,0.50133452,116010.0,116000.0,0.48497]
[1752189660580,0.50181453,116010.0,116000.0,0.48497]
[1752189660986,0.70487243,116010.0,116000.0,0.00344]
[1752189661180,0.70487243,116010.0,116000.0,0.003]
[1752189661485,1.06567243,116010.0,116000.0,0.003]
[1752189661985,0.0228,115990.0,115980.0,0.4814]
[1752189662190,0.49912452,115990.0,115980.0,0.44968]
[1752189662383,0.53270453,115990.0,115980.0,0.41748]
[1752189662578,1.06589213,115990.0,115980.0,0.05668]
[1752189662778,1.06589213,115990.0,115980.0,0.0562]
[1752189663382,0.89350453,115990.0,115980.0,0.0602]
[1752189663584,0.89350453,115990.0,115980.0,0.0652]
[1752189663983,0.89350453,115990.0,115980.0,0.0602]
[1752189664178,0.67268227,115990.0,115980.0,0.0622]
[1752189664682,0.45186001,115990.0,115980.0,0.0622]
[1752189664986,0.31188227,115990.0,115980.0,0.0622]
[1752189665187,0.31140226,115990.0,115980.0,0.0622]
[1752189666087,0.31140226,115990.0,115980.0,0.0592]
[1752189669889,0.32014541,115990.0,115980.0,0.0592]
[1752189670289,0.54096767,115990.0,115980.0,0.0592]
[1752189670584,0.71379517,115990.0,115980.0,0.003]
[1752189670789,1.07459517,115990.0,115980.0,0.003]
[1752189676191,0.90220767,115990.0,115980.0,0.0592]
[1752189679586,0.54140767,115990.0,115980.0,0.0592]
[1752189679792,0.54140767,115990.0,115980.0,0.42]
[1752189679793,0.66842315,115990.0,115980.0,0.42]
[1752189680092,0.88050226,115990.0,115980.0,0.48194]
[1752189680794,0.65968,115990.0,115980.0,0.48194]
[1752189680996,0.88050226,115990.0,115980.0,0.48194]
[1752189682096,0.84582226,115990.0,115980.0,0.48194]
[1752189682296,0.24406226,115990.0,115980.0,0.48194]
[1752189682594,0.24362226,115990.0,115980.0,0.48194]
[1752189682996,0.27481226,115990.0,115980.0,0.48194]
[1752189686403,0.27481226,115990.0,115980.0,0.49045265]
[1752189686900,0.27481226,115990.0,115980.0,0.48194]
[1752189695993,0.49563452,115990.0,115980.0,0.48194]
[1752189696201,0.52791453,115990.0,115980.0,0.48194]
[1752189696400,0.56051453,115990.0,115980.0,0.48194]
[1752189697700,0.73290153,115990.0,115980.0,0.38554]
[1752189698200,0.73290153,115990.0,115980.0,0.41924]
[1752189698802,0.73290153,115990.0,115980.0,0.36424]
[1752189699692,0.73290153,115990.0,115980.0,0.00044]
[1752189699894,0.2264868,115970.0,115960.0,0.00172466]
[1752189700104,2.22961132,115970.0,115960.0,0.00172466]
[1752189700397,2.29431132,115970.0,115960.0,0.00172466]
[1752189701195,2.29431132,115970.0,115960.0,0.00572466]
[1752189701602,2.14096258,115970.0,115960.0,0.00872466]
[1752189702407,1.96854578,115970.0,115960.0,0.00872466]
[1752189702702,2.14096258,115970.0,115960.0,0.00872466]
[1752189703505,2.14152259,115970.0,115960.0,0.00872466]
[1752189704707,2.36234485,115970.0,115960.0,0.00872466]
[1752189706096,2.36234485,115970.0,115960.0,0.00672466]
[1752189706399,2.36234485,115970.0,115960.0,0.00272466]
[1752189706598,2.14152259,115970.0,115960.0,0.00272466]
[1752189708608,0.02288,115950.0,115940.0,0.41726]
[1752189708804,1.69655452,115950.0,115940.0,0.41726]
[1752189709003,1.75715452,115950.0,115940.0,0.41726]
[1752189709305,1.75715452,115950.0,115940.0,0.45056]
[1752189709506,1.75715452,115950.0,115940.0,0.48356]
[1752189710910,1.75715452,115950.0,115940.0,0.48656]
[1752189711108,1.72715452,115950.0,115940.0,0.48656]
[1752189711310,1.69655452,115950.0,115940.0,0.48956]
[1752189711811,1.47573226,115950.0,115940.0,0.48956]
[1752189712309,1.48444088,115950.0,115940.0,0.48956]
[1752189712704,1.70526314,115950.0,115940.0,0.48956]
[1752189713597,1.87770964,115950.0,115940.0,0.006]
[1752189713802,1.94040964,115950.0,115940.0,0.006]
[1752189714108,1.94040964,115950.0,115940.0,0.003]
[1752189714307,1.94040964,115950.0,115930.0,0.41165535]
[1752189714308,1.98352264,115950.0,115930.0,0.47655535]
[1752189714505,1.98352264,115950.0,115930.0,0.37851535]
[1752189714506,0.44642366,115940.0,115930.0,0.37851535]
[1752189714897,0.50912366,115940.0,115930.0,0.37851535]
[1752189715099,0.50912366,115940.0,115930.0,0.41165535]
[1752189715304,0.2256163,115930.0,115920.0,0.00172525]
[1752189715506,1.93092082,115930.0,115920.0,0.00172525]
[1752189716013,2.29172082,115930.0,115920.0,0.00172525]
[1752189717812,0.05314,115910.0,115900.0,0.08726]
[1752189718007,1.47492226,115910.0,115900.0,0.08726]
[1752189718202,1.50562226,115910.0,115900.0,0.08726]
[1752189719016,1.50562226,115910.0,115900.0,0.11816]
[1752189719316,1.3217367,115910.0,115900.0,0.47896]
[1752189719616,1.32229671,115910.0,115900.0,0.4794]
[1752189719810,1.54311897,115910.0,115900.0,0.4794]
[1752189720115,1.55162607,115910.0,115900.0,0.4794]
[1752189720323,0.06807671,115910.0,115900.0,0.87274306]
[1752189720513,1.45340226,115920.0,115910.0,0.03314]
[1752189720817,1.09594453,115920.0,115910.0,0.11986]
[1752189721218,1.10447488,115920.0,115910.0,0.48066]
[1752189721516,1.09594453,115920.0,115910.0,0.48114]
[1752189721714,1.09694453,115920.0,115910.0,0.48114]
[1752189721907,1.09894453,115920.0,115910.0,0.48114]
[1752189722414,1.09894453,115920.0,115910.0,0.12034]
[1752189722607,1.09894453,115920.0,115910.0,0.11986]
[1752189722813,1.09894453,115920.0,115910.0,0.48066]
[1752189723212,0.24602227,115920.0,115910.0,0.48066]
[1752189723420,0.003,115920.0,115910.0,0.87398826]
[1752189724020,0.003,115920.0,115910.0,1.253806]
[1752189724518,0.002,115920.0,115910.0,1.253806]
[1752189724920,0.22282226,115930.0,115910.0,1.221666]
[1752189725120,0.24446226,115930.0,115920.0,0.47826]
[1752189725709,0.25232226,115960.0,115930.0,0.2056151]
[1752189725911,0.05314,115960.0,115950.0,0.05446]
[1752189726118,0.27396226,115960.0,115950.0,0.05446]
[1752189726310,0.27396226,115960.0,115950.0,0.47756]
[1752189727318,0.27396226,115960.0,115950.0,0.47656]
[1752189727720,0.27696226,115960.0,115950.0,0.47656]
[1752189727920,0.06214,115960.0,115950.0,0.47656]
[1752189728115,0.28296226,115960.0,115950.0,0.477]
[1752189728615,0.24646226,115960.0,115950.0,0.477]
[1752189728817,0.02764,115960.0,115950.0,0.477]
[1752189729413,0.006,115960.0,115950.0,1.2500465]
[1752189730624,0.004,115960.0,115950.0,1.2500465]
[1752189731928,0.34731397,115970.0,115960.0,0.2268916]
[1752189732121,0.34731397,115970.0,115960.0,0.6509916]
[1752189732320,0.002,115970.0,115960.0,0.6514316]
[1752189733125,0.003,115970.0,115960.0,0.8238956]
[1752189733423,0.005,115970.0,115960.0,0.8238956]
[1752189736625,0.005,115970.0,115960.0,1.2518716]
[1752189738321,0.35031397,115970.0,115960.0,0.479]
[1752189738624,0.35031397,115970.0,115960.0,1.07944]
[1752189739625,0.35031397,115970.0,115960.0,0.479]
[1752189739825,0.37195397,115970.0,115960.0,1.2517918]
[1752189740026,0.35031397,115970.0,115960.0,1.2517918]
[1752189741018,0.35031397,115970.0,115960.0,0.6514318]
[1752189741217,0.35031397,115970.0,115960.0,1.07936]
[1752189741622,0.40345397,115970.0,115960.0,0.4463]
[1752189741821,0.40345397,115970.0,115960.0,1.04662]
[1752189742023,0.43675397,115970.0,115960.0,1.04662]
[1752189742426,0.46755397,115970.0,115960.0,1.04662]
[1752189742728,0.46755397,115970.0,115960.0,0.4463]
[1752189742936,0.46755397,115970.0,115960.0,1.04662]
[1752189743829,0.46755397,115970.0,115960.0,0.65472]
[1752189744031,0.46755397,115970.0,115960.0,1.01552]
[1752189746836,0.46755397,115970.0,115960.0,0.65472]
[1752189747539,0.46755397,115970.0,115960.0,1.01552]
[1752189748842,0.34328495,115970.0,115960.0,1.01552]
[1752189750542,0.51570185,115970.0,115960.0,0.0544]
[1752189750743,0.51570185,115970.0,115960.0,0.05396]
[1752189751237,0.34328495,115970.0,115960.0,0.05396]
[1752189751442,0.34328495,115970.0,115960.0,0.41476]
[1752189751739,0.12224,115970.0,115960.0,0.41476]
[1752189751945,0.34328495,115970.0,115960.0,0.44486]
[1752189752242,0.34328495,115970.0,115960.0,0.47716]
[1752189753344,0.34328495,115970.0,115960.0,0.4776]
[1752189754043,0.34328495,115970.0,115960.0,1.07788]
[1752189756535,0.27918495,115970.0,115960.0,1.07788]
[1752189756732,0.005,115970.0,115960.0,1.07788]
[1752189756934,0.22604495,115970.0,115960.0,1.07788]
[1752189757844,0.24812495,115970.0,115960.0,1.07788]
[1752189758244,0.27907495,115970.0,115960.0,1.07788]
[1752189758748,0.27807495,115970.0,115960.0,1.07788]
[1752189759151,0.27607495,115970.0,115960.0,1.07788]
[1752189759350,0.05503,115970.0,115960.0,1.07788]
[1752189759542,0.27607495,115970.0,115960.0,0.4152]
[1752189759738,0.33937495,115970.0,115960.0,0.4152]
[1752189760445,0.7328368,115970.0,115960.0,0.0544]
[1752189760750,0.7328368,115970.0,115950.0,1.015]
[1752189760751,0.05303,115960.0,115950.0,1.015]
[1752189761045,0.5584199,115960.0,115950.0,1.015]
[1752189762150,0.5604199,115960.0,115950.0,1.015]
[1752189763150,0.56097991,115960.0,115950.0,0.41532]
[1752189764446,0.73341161,115960.0,115950.0,0.41532]
[1752189764751,0.73441161,115960.0,115950.0,0.41532]
[1752189765751,0.56197991,115960.0,115950.0,0.41532]
[1752189767653,0.34093496,115960.0,115950.0,0.41532]
[1752189767852,0.34037495,115960.0,115950.0,0.41532]
[1752189768653,0.34037495,115960.0,115950.0,0.44832]
[1752189769051,0.51280665,115960.0,115950.0,0.44832]
[1752189769254,1.3340516,115960.0,115950.0,0.05452]
[1752189769456,1.6948516,115960.0,115950.0,0.05396]
[1752189769651,0.2254766,115950.0,115940.0,0.05396]
[1752189769955,0.05303,115940.0,115930.0,0.05396]
[1752189770144,0.33767495,115940.0,115930.0,0.05396]
[1752189770547,0.30517495,115940.0,115930.0,0.11756]
[1752189771148,0.30517495,115940.0,115930.0,0.47836]
[1752189771356,0.27407495,115940.0,115930.0,0.47936]
[1752189771754,0.28267725,115940.0,115930.0,0.47936]
[1752189772257,0.35295241,115940.0,115930.0,0.47936]
[1752189772460,0.35295241,115940.0,115930.0,0.48036]
[1752189772847,0.3608,115950.0,115930.0,0.48036]
[1752189773158,0.27601496,115950.0,115940.0,0.11561]
[1752189773358,0.4964999,115950.0,115940.0,0.11561]
[1752189773561,0.4971399,115950.0,115940.0,0.11561]
[1752189774662,0.05505,115950.0,115940.0,0.11561]
[1752189774863,0.4964999,115950.0,115940.0,0.11561]
[1752189775063,0.49705991,115950.0,115940.0,0.11561]
[1752189776064,0.50577504,115950.0,115940.0,0.11561]
[1752189778869,0.50577504,115950.0,115940.0,0.11568514]
[1752189782970,0.67822134,115950.0,115940.0,0.05108514]
[1752189783272,1.03902134,115950.0,115940.0,7.514e-05]
[1752189783469,1.10392134,115950.0,115940.0,7.514e-05]
[1752189785370,0.1724698,115940.0,115920.0,0.11282988]
[1752189785567,0.1724698,115940.0,115920.0,0.10086988]
[1752189785568,0.4964999,115930.0,115920.0,0.10086988]
[1752189785768,0.5613999,115930.0,115920.0,0.10086988]
[1752189786372,0.733876,115930.0,115920.0,0.01985988]
[1752189786676,1.094676,115930.0,115920.0,0.05072988]
[1752189787469,1.094676,115930.0,115920.0,0.05272988]
[1752189788066,0.92275991,115930.0,115920.0,0.05372988]
[1752189788262,0.92275991,115930.0,115920.0,0.05572988]
[1752189788263,1.09523601,115930.0,115920.0,0.05572988]
[1752189788975,1.09523601,115930.0,115920.0,0.07586988]
[1752189789176,0.92275991,115930.0,115920.0,0.07586988]
[1752189789377,1.09523601,115930.0,115920.0,0.07586988]
[1752189789972,0.73443601,115930.0,115920.0,0.07586988]
[1752189792879,1.09523601,115930.0,115920.0,0.07586988]
[1752189793179,0.27601496,115930.0,115920.0,0.07586988]
[1752189793375,0.27545495,115930.0,115920.0,0.13976988]
[1752189793577,0.668976,115930.0,115920.0,0.02485988]
[1752189793778,1.093176,115930.0,115920.0,0.02485988]
[1752189794779,0.9206999,115930.0,115920.0,0.02485988]
[1752189795381,1.093176,115930.0,115920.0,0.02485988]
[1752189795680,1.096176,115930.0,115920.0,0.02285988]
[1752189796776,1.096176,115930.0,115920.0,0.01985988]
[1752189796982,1.100176,115930.0,115920.0,0.01985988]
[1752189798184,1.10073601,115930.0,115920.0,0.01985988]
[1752189799292,1.10073601,115930.0,115920.0,0.00172525]
[1752189811608,1.14720368,115930.0,115920.0,0.00172525]
[1752189812204,1.14721455,115930.0,115920.0,0.00172525]
[1752189812400,1.10073601,115930.0,115920.0,0.00172525]
[1752189818704,0.1929409,115920.0,115910.0,0.0316]
[1752189818901,2.2905808,115920.0,115910.0,0.0316]
[1752189819301,2.3020138,115920.0,115900.0,0.42546]
[1752189819502,0.27318495,115910.0,115900.0,0.48012]
[1752189821206,0.05214,115910.0,115900.0,0.6526407]
[1752189821404,0.27318495,115910.0,115900.0,0.48012]
[1752189823209,0.27318495,115910.0,115900.0,0.48056]
[1752189823910,0.05214,115910.0,115900.0,0.48056]
[1752189824109,0.27318495,115910.0,115900.0,0.48056]
[1752189824912,0.27318495,115910.0,115900.0,0.49404889]
[1752189826009,0.27318495,115910.0,115900.0,0.48056]
[1752189828113,0.44569075,115910.0,115900.0,0.11976]
[1752189828305,0.44569075,115910.0,115900.0,0.11932]
[1752189828611,0.27318495,115910.0,115900.0,0.11932]
[1752189828801,0.27318495,115910.0,115900.0,0.48012]
[1752189829314,0.44569075,115910.0,115900.0,0.48012]
[1752189830118,0.44569075,115910.0,115900.0,0.11932]
[1752189830314,1.0275357,115910.0,115900.0,0.0329]
[1752189830511,0.83759075,115910.0,115900.0,0.0329]
[1752189830706,0.86859075,115910.0,115900.0,0.0329]
[1752189831212,0.05214,115900.0,115890.0,0.10394731]
[1752189831417,1.47294495,115900.0,115890.0,0.13414731]
[1752189832216,1.47294495,115900.0,115890.0,0.14763784]
[1752189832615,1.47294495,115900.0,115890.0,0.14863784]
[1752189832815,1.47294495,115900.0,115890.0,0.14963784]
[1752189833114,1.47350496,115900.0,115890.0,0.51043784]
[1752189833316,1.48228285,115900.0,115890.0,0.51087784]
[1752189835010,1.48228285,115900.0,115890.0,0.49738731]
[1752189841024,1.48228285,115900.0,115890.0,0.47906]
[1752189845926,1.7033278,115900.0,115890.0,0.05293]
[1752189846126,1.7033278,115900.0,115890.0,0.05249]
[1752189846127,1.7676278,115900.0,115890.0,0.05249]
[1752189846332,1.9401485,115900.0,115890.0,0.05249]
[1752189846921,1.9401485,115900.0,115890.0,0.002]
[1752189847130,1.9401483,115900.0,115890.0,0.002]
[1752189847631,1.54658285,115900.0,115890.0,0.0314]
[1752189847829,1.71910345,115900.0,115890.0,0.0314]
[1752189848231,1.9401484,115900.0,115890.0,0.0314]
[1752189849232,1.9401484,115900.0,115890.0,0.002]
[1752189850229,1.9401484,115900.0,115890.0,0.01549112]
[1752189850432,2.3009484,115900.0,115890.0,0.002]
[1752189853737,1.8588585,115900.0,115890.0,0.01549129]
[1752189854125,2.3009484,115900.0,115890.0,0.01549129]
[1752189854431,2.3009484,115900.0,115890.0,0.0154918]
[1752189855027,0.1936955,115890.0,115880.0,0.01997839]
[1752189855236,1.0880554,115890.0,115880.0,0.03347069]
[1752189855429,1.0880554,115890.0,115880.0,0.00172585]
[1752189855832,0.47343,115890.0,115880.0,0.00172585]
[1752189856135,0.9155199,115890.0,115880.0,0.00372585]
[1752189856335,0.9155199,115890.0,115880.0,0.00672585]
[1752189856636,0.9155199,115890.0,115880.0,0.05721585]
[1752189856832,0.9155199,115890.0,115880.0,0.05421585]
[1752189857033,0.9155199,115890.0,115880.0,0.05521585]
[1752189857632,0.9155199,115890.0,115880.0,0.05321585]
[1752189857831,0.9155199,115890.0,115880.0,0.05421585]
[1752189858031,0.91607991,115890.0,115880.0,0.05421585]
[1752189860438,1.08861541,115890.0,115880.0,0.05421585]
[1752189860741,1.08861541,115890.0,115880.0,0.00372585]
[1752189861637,0.91607991,115890.0,115880.0,0.00372585]
[1752189862134,1.08861541,115890.0,115880.0,0.00372585]
[1752189863640,0.91607991,115890.0,115880.0,0.00372585]
[1752189864039,1.08861541,115890.0,115880.0,0.00372585]
[1752189864430,0.91607991,115890.0,115880.0,0.00372585]
[1752189864738,1.08861541,115890.0,115880.0,0.00372585]
[1752189864935,0.91607991,115890.0,115880.0,0.00372585]
[1752189865141,1.08861541,115890.0,115880.0,0.00372585]
[1752189865541,1.08861541,115890.0,115880.0,0.05329585]
[1752189865944,0.91607991,115890.0,115880.0,0.05329585]
[1752189866434,1.08861541,115890.0,115880.0,0.05329585]
[1752189867246,0.91607991,115890.0,115880.0,0.05329585]
[1752189867444,1.08861541,115890.0,115880.0,0.11529585]
[1752189867744,1.08861541,115890.0,115880.0,0.08498585]
[1752189867945,1.08861541,115890.0,115880.0,0.03372585]
[1752189868546,0.64652551,115890.0,115880.0,0.03372585]
[1752189868748,1.08861541,115890.0,115880.0,0.03372585]
[1752189868948,1.08922317,115890.0,115880.0,0.03372585]
[1752189870852,0.91668767,115890.0,115880.0,0.03372585]
[1752189871047,0.91668767,115890.0,115880.0,0.08329585]
[1752189871348,0.00056001,115890.0,115880.0,1.05934391]
[1752189871553,0.22134883,115890.0,115880.0,1.06203391]
[1752189871858,0.22134883,115890.0,115880.0,0.87099508]
[1752189872245,0.22134883,115890.0,115880.0,0.88448611]
[1752189872542,0.63045,115910.0,115890.0,0.03031]
[1752189872746,0.65033,115910.0,115900.0,0.08226]
[1752189872945,0.65033,115910.0,115900.0,0.11257]
[1752189873250,0.65089001,115910.0,115900.0,0.11257]
[1752189873852,0.92065111,115910.0,115900.0,0.11257]
[1752189874051,0.92065111,115910.0,115900.0,0.1260607]
[1752189874252,0.27452332,115910.0,115900.0,0.1260607]
[1752189874553,0.01054888,115930.0,115920.0,0.04457]
[1752189874759,0.05073,115950.0,115940.0,0.04957]
[1752189875058,0.27196331,115950.0,115940.0,0.41037]
[1752189875249,0.08283,115950.0,115940.0,0.41081]
[1752189875448,0.08283,115950.0,115940.0,0.44281]
[1752189875449,0.30406331,115950.0,115940.0,0.44281]
[1752189875650,0.30406331,115950.0,115940.0,0.43981]
[1752189876054,1.50318331,115950.0,115940.0,0.43981]
[1752189876256,1.50366332,115950.0,115940.0,0.43981]
[1752189876655,1.51247327,115950.0,115940.0,0.43881]
[1752189877356,1.51547327,115950.0,115940.0,0.43881]
[1752189877655,1.51066332,115950.0,115940.0,0.43881]
[1752189879052,1.72889663,115950.0,115940.0,0.12027944]
[1752189879251,1.72889663,115950.0,115940.0,0.10457944]
[1752189879456,1.76069663,115950.0,115940.0,0.10457944]
[1752189879757,1.75769663,115950.0,115940.0,0.10457944]
[1752189879954,1.32363464,115950.0,115940.0,0.10457944]
[1752189880257,1.76610126,115950.0,115940.0,0.10457944]
[1752189880455,1.76610126,115950.0,115940.0,0.1180201]
[1752189880658,1.93854766,115950.0,115940.0,0.1180201]
[1752189881051,1.93854766,115950.0,115940.0,0.0860201]
[1752189881250,1.93854766,115950.0,115940.0,0.07257944]
[1752189881452,2.29934766,115950.0,115940.0,0.002]
[1752189897474,2.29934766,115950.0,115940.0,0.01548616]
[1752189901169,2.29934766,115950.0,115940.0,0.04815447]
[1752189901373,2.29934766,115950.0,115940.0,0.07858447]
[1752189901560,1.85688104,115950.0,115940.0,0.06523616]
[1752189901766,2.29934766,115950.0,115940.0,0.06523616]
[1752189902073,2.29934766,115950.0,115940.0,0.07859138]
[1752189905278,2.29934766,115950.0,115940.0,0.06523616]
[1752189905573,2.29934766,115950.0,115940.0,0.10950741]
[1752189906376,2.29934766,115950.0,115940.0,0.07907741]
[1752189906577,2.29934766,115950.0,115940.0,0.02885741]
[1752189907071,2.29934766,115950.0,115940.0,0.05975741]
[1752189908976,2.09510126,115950.0,115940.0,0.09018741]
[1752189909277,2.26754766,115950.0,115940.0,0.10950741]
[1752189909978,1.73430126,115950.0,115940.0,0.10950741]
[1752189910280,2.26754766,115950.0,115940.0,0.10950741]
[1752189911081,2.09510126,115950.0,115940.0,0.10950741]
[1752189911284,1.73430126,115950.0,115940.0,0.10950741]
[1752189911576,2.09510126,115950.0,115940.0,0.10950741]
[1752189911977,1.65263464,115950.0,115940.0,0.10950741]
[1752189912175,2.09510126,115950.0,115940.0,0.10950741]
[1752189912375,2.26754766,115950.0,115940.0,0.10950741]
[1752189915372,1.48096795,115950.0,115940.0,0.10950741]
[1752189915573,0.65121001,115950.0,115940.0,0.67286871]
[1752189915874,0.65121001,115950.0,115940.0,0.6731538]
[1752189916276,0.87244332,115950.0,115940.0,0.6731538]
[1752189916678,0.62036001,115950.0,115940.0,0.6731538]
[1752189916883,0.02136001,115950.0,115940.0,0.6731538]
[1752189917080,0.02088,115950.0,115940.0,0.6731538]
[1752189917274,0.02088,115950.0,115940.0,0.5006925]
[1752189917479,0.24211331,115950.0,115940.0,0.6731538]
[1752189917680,0.02088,115950.0,115940.0,0.69150927]
[1752189917882,0.01988,115950.0,115940.0,0.68950927]
[1752189918084,0.85831313,115960.0,115940.0,0.70319457]
[1752189918285,0.87937313,115960.0,115950.0,0.47365]
[1752189918481,0.87063331,115960.0,115950.0,0.48765616]
[1752189918683,0.87063331,115960.0,115950.0,0.48765407]
[1752189919588,0.87263331,115960.0,115950.0,0.48765407]
[1752189920586,0.88211387,115960.0,115950.0,0.48765407]
[1752189921386,0.88111387,115960.0,115950.0,0.48765407]
[1752189921591,0.88211387,115960.0,115950.0,0.48765407]
[1752189921784,0.66088056,115960.0,115950.0,0.48765407]
[1752189921984,0.88211387,115960.0,115950.0,0.48765407]
[1752189922194,0.88211387,115960.0,115950.0,0.48765405]
[1752189922593,0.91221387,115960.0,115950.0,0.48765405]
[1752189923586,0.27463331,115960.0,115950.0,0.48765405]
[1752189923890,0.6225,115960.0,115950.0,0.500648]
[1752189924089,0.02362,115960.0,115950.0,0.500648]
[1752189924587,0.27535331,115960.0,115950.0,0.500648]
[1752189924794,0.27235331,115960.0,115950.0,0.501648]
[1752189924989,0.02062,115960.0,115950.0,0.89532761]
[1752189925195,0.86134376,115970.0,115950.0,0.90800911]
[1752189925386,0.88007376,115970.0,115960.0,0.11261]
[1752189925586,0.88007376,115970.0,115960.0,0.12609383]
[1752189926189,0.88007376,115970.0,115960.0,0.11261]
[1752189927693,0.88107376,115970.0,115960.0,0.11261]
[1752189928190,0.88151376,115970.0,115960.0,0.11261]
[1752189928490,0.88143376,115970.0,115960.0,0.11261]
[1752189928689,0.88243376,115970.0,115960.0,0.11261]
[1752189930094,0.88339376,115970.0,115960.0,0.11261]
[1752189930389,0.91479376,115970.0,115960.0,0.11261]
[1752189930591,0.91479376,115970.0,115960.0,0.08161]
[1752189931687,0.91379376,115970.0,115960.0,0.08161]
[1752189931893,0.91479376,115970.0,115960.0,0.08161]
[1752189934393,1.14863357,115970.0,115950.0,0.39113]
[1752189934597,1.05612812,115960.0,115950.0,0.00044]
[1752189934796,1.14448492,115960.0,115940.0,0.04868547]
[1752189934996,0.55509662,115950.0,115940.0,0.06916547]
[1752189935197,1.75289662,115950.0,115940.0,0.09976547]
[1752189935891,1.53166331,115950.0,115940.0,0.09976547]
[1752189936196,1.49946331,115950.0,115940.0,0.09976547]
[1752189936390,1.49946331,115950.0,115940.0,0.10176547]
[1752189936585,1.49946331,115950.0,115940.0,0.46256547]
[1752189936788,1.49946331,115950.0,115940.0,0.46300547]
[1752189936988,1.49946331,115950.0,115940.0,0.10220547]
[1752189937191,1.49946331,115950.0,115940.0,0.46256547]
[1752189937388,1.49946331,115950.0,115940.0,0.10220547]
[1752189937699,1.49946331,115950.0,115940.0,0.46256547]